fUSD/lending_fUSD_20260514
["ID","MTS","AMOUNT","RATE_DAILY","PERIOD"]
[422261042,1778773849000,-6069.126935,0.00034511,7]
[422261031,1778773849000,-413.199868,0.00034511,7]
[422261050,1778773849000,-172.0,0.00034521,30]
[422261082,1778773849000,-1295.35,0.000349,30]
[422261093,1778773849000,-194.985968,0.00034972,3]
[422261094,1778773849000,-700.0,0.00034977,9]
[422261084,1778773849000,-288.0,0.00034943,3]
[422261090,1778773849000,-189.9755229,0.00034967,120]
[422261085,1778773849000,-200.0,0.00034962,2]
[422261088,1778773849000,-200.0,0.00034962,2]
[422261089,1778773849000,-200.0,0.00034962,2]
[422261092,1778773849000,-500.0,0.00034972,3]
[422261087,1778773849000,-200.0,0.00034962,2]
[422261086,1778773849000,-200.0,0.00034962,2]
[422261091,1778773849000,-500.0,0.00034972,3]
[422261096,1778773849000,-40768.0,0.00035015,30]
[422261104,1778773849000,-590.8172916,0.00035069,2]
[422261106,1778773849000,-150.0,0.00035069,2]
[422261105,1778773849000,-1070.0,0.00035069,2]
[422261097,1778773849000,-556.0,0.00035068,13]
[422261100,1778773849000,-150.0,0.00035069,2]
[422261098,1778773849000,-150.0,0.00035069,2]
[422261095,1778773849000,-1804.17543838,0.00035,2]
[422261099,1778773849000,-150.0,0.00035069,2]
[422261101,1778773849000,-273.30264021,0.00035069,2]
[422261102,1778773849000,-210.60844671,0.00035069,2]
[422261103,1778773849000,-500.0,0.00035069,2]
[422261107,1778773849000,-1070.0,0.00035069,2]
[422261109,1778773849000,-150.0,0.00035069,2]
[422261047,1778773849000,-151.0,0.00034511,7]
[422261083,1778773849000,-288.0,0.00034943,3]
[422261074,1778773849000,-273.02,0.00034765,30]
[422261108,1778773849000,-500.0,0.00035069,2]
[422261072,1778773849000,-500.0,0.00034756,60]
[422261070,1778773849000,-40768.0,0.00034637,30]
[422261048,1778773849000,-151.0,0.00034511,7]
[422261051,1778773849000,-151.0,0.00034521,30]
[422261049,1778773849000,-151.0,0.00034511,7]
[422261052,1778773849000,-276.0,0.00034572,30]
[422261056,1778773849000,-209.0,0.00034573,30]
[422261058,1778773849000,-178.0,0.00034578,30]
[422261059,1778773849000,-154.0,0.00034578,30]
[422261060,1778773849000,-252.0,0.00034578,30]
[422261063,1778773849000,-591248.47168437,0.0003458,2]
[422261067,1778773849000,-1287.9575,0.0003458,7]
[422261061,1778773849000,-1982.0,0.00034578,30]
[422261065,1778773849000,-1287.9575,0.0003458,7]
[422261064,1778773849000,-1287.9575,0.0003458,7]
[422261046,1778773849000,-254.173726,0.00034511,7]
[422261057,1778773849000,-172.0,0.00034573,30]
[422261062,1778773849000,-729.541633,0.0003458,2]
[422261073,1778773849000,-40768.0,0.00034763,30]
[422261075,1778773849000,-150.0,0.00034781,2]
[422261076,1778773849000,-1500.0,0.00034795,2]
[422261071,1778773849000,-720.81,0.00034638,2]
[422261077,1778773849000,-152.0,0.000348,9]
[422261078,1778773849000,-2546.52,0.000348,14]
[422261081,1778773849000,-40768.0,0.00034889,30]
[422261079,1778773849000,-157.0,0.00034804,3]
[422261080,1778773849000,-230.18763728,0.00034813,2]
[422261069,1778773849000,-151.0,0.0003458,7]
[422261066,1778773849000,-1287.9575,0.0003458,7]
[422261068,1778773849000,-151.0,0.0003458,7]
[422261160,1778773850000,-210.0,0.00035573,30]
[422261150,1778773850000,-926.0,0.0003538,2]
[422261146,1778773850000,-152.61064582,0.000353,120]
[422261143,1778773850000,-500.0,0.00035287,20]
[422261145,1778773850000,-526.86,0.00035287,20]
[422261144,1778773850000,-500.0,0.00035287,20]
[422261147,1778773850000,-973.06816393,0.00035308,2]
[422261142,1778773850000,-40768.0,0.00035267,30]
[422261149,1778773850000,-1354.0,0.0003538,2]
[422261139,1778773850000,-171.6150697,0.00035173,2]
[422261148,1778773850000,-330.0,0.00035342,38]
[422261141,1778773850000,-1500.0,0.000352,7]
[422261157,1778773850000,-500.0,0.000354,10]
[422261151,1778773850000,-3542.0,0.0003538,2]
[422261156,1778773850000,-500.0,0.000354,10]
[422261152,1778773850000,-1270.0,0.0003538,2]
[422261154,1778773850000,-10072.66,0.0003538,30]
[422261155,1778773850000,-40768.0,0.00035393,30]
[422261158,1778773850000,-40768.0,0.00035519,30]
[422261159,1778773850000,-276.0,0.00035572,30]
[422261161,1778773850000,-2905.0,0.00035573,30]
[422261164,1778773850000,-172.0,0.00035573,30]
[422261165,1778773850000,-178.0,0.00035578,30]
[422261136,1778773850000,-503.52293091,0.00035069,2]
[422261163,1778773850000,-209.0,0.00035573,30]
[422261153,1778773850000,-3630.0,0.0003538,2]
[422261137,1778773850000,-1210.47,0.000351,7]
[422261123,1778773850000,-1070.0,0.00035069,2]
[422261138,1778773850000,-40768.0,0.00035141,30]
[422261162,1778773850000,-4032.0,0.00035573,30]
[422261118,1778773850000,-1070.0,0.00035069,2]
[422261111,1778773850000,-200.0,0.00035069,2]
[422261112,1778773850000,-1070.0,0.00035069,2]
[422261116,1778773850000,-150.0,0.00035069,2]
[422261110,1778773850000,-1070.0,0.00035069,2]
[422261117,1778773850000,-1070.0,0.00035069,2]
[422261115,1778773850000,-1070.0,0.00035069,2]
[422261113,1778773850000,-1070.0,0.00035069,2]
[422261120,1778773850000,-1070.0,0.00035069,2]
[422261121,1778773850000,-1070.0,0.00035069,2]
[422261122,1778773850000,-1070.0,0.00035069,2]
[422261119,1778773850000,-1070.0,0.00035069,2]
[422261125,1778773850000,-1070.0,0.00035069,2]
[422261124,1778773850000,-1070.0,0.00035069,2]
[422261127,1778773850000,-1070.0,0.00035069,2]
[422261126,1778773850000,-1070.0,0.00035069,2]
[422261129,1778773850000,-1070.0,0.00035069,2]
[422261128,1778773850000,-1070.0,0.00035069,2]
[422261130,1778773850000,-1070.0,0.00035069,2]
[422261134,1778773850000,-500.0,0.00035069,2]
[422261133,1778773850000,-1093.0,0.00035069,2]
[422261132,1778773850000,-1070.0,0.00035069,2]
[422261131,1778773850000,-1070.0,0.00035069,2]
[422261135,1778773850000,-500.0,0.00035069,2]
[422261140,1778773850000,-10000.193224,0.00035183,10]
[422261172,1778773850000,-500.0,0.00035616,7]
[422261114,1778773850000,-1070.0,0.00035069,2]
[422261166,1778773850000,-154.0,0.00035578,30]
[422261206,1778773850000,-503.537667,0.0003577,7]
[422261201,1778773850000,-503.537667,0.0003577,7]
[422261208,1778773850000,-787.643953,0.0003577,7]
[422261200,1778773850000,-882.070116,0.0003577,7]
[422261207,1778773850000,-787.643953,0.0003577,7]
[422261198,1778773850000,-882.070116,0.0003577,7]
[422261203,1778773850000,-787.643953,0.0003577,7]
[422261204,1778773850000,-503.537667,0.0003577,7]
[422261202,1778773850000,-503.537667,0.0003577,7]
[422261205,1778773850000,-787.643953,0.0003577,7]
[422261210,1778773850000,-243.84,0.00035871,39]
[422261211,1778773850000,-1000.0,0.00035879,60]
[422261212,1778773850000,-40768.0,0.00035896,30]
[422261213,1778773850000,-163.0,0.000359,120]
[422261215,1778773850000,-649.95,0.00035922,7]
[422261214,1778773850000,-1500.0,0.000359,21]
[422261218,1778773850000,-1000.0,0.00035988,60]
[422261217,1778773850000,-150.0,0.00035981,2]
[422261223,1778773850000,-500.0,0.00035999,30]
[422261216,1778773850000,-1000.0,0.00035959,60]
[422261219,1778773850000,-151.0,0.00035998,37]
[422261220,1778773850000,-729.97223516,0.00035999,30]
[422261221,1778773850000,-1148.61238259,0.00035999,30]
[422261222,1778773850000,-151.0,0.00035999,30]
[422261167,1778773850000,-252.0,0.00035578,30]
[422261199,1778773850000,-882.070116,0.0003577,7]
[422261195,1778773850000,-321.442549,0.0003577,7]
[422261209,1778773850000,-2546.52,0.000358,14]
[422261196,1778773850000,-321.442549,0.0003577,7]
[422261171,1778773850000,-500.0,0.00035616,7]
[422261197,1778773850000,-882.070116,0.0003577,7]
[422261168,1778773850000,-1982.0,0.00035578,30]
[422261169,1778773850000,-500.0,0.00035616,7]
[422261185,1778773850000,-1062.333433,0.0003577,7]
[422261181,1778773850000,-649.95,0.00035741,7]
[422261182,1778773850000,-156.0,0.00035762,10]
[422261183,1778773850000,-40768.0,0.0003577,30]
[422261178,1778773850000,-151.0,0.00035616,7]
[422261176,1778773850000,-201.63713439,0.00035616,7]
[422261174,1778773850000,-500.0,0.00035616,7]
[422261173,1778773850000,-500.0,0.00035616,7]
[422261180,1778773850000,-40768.0,0.00035644,30]
[422261170,1778773850000,-500.0,0.00035616,7]
[422261184,1778773850000,-1062.333433,0.0003577,7]
[422261177,1778773850000,-167.32157081,0.00035616,2]
[422261187,1778773850000,-1062.333433,0.0003577,7]
[422261188,1778773850000,-151.0,0.0003577,7]
[422261191,1778773850000,-892.364592,0.0003577,7]
[422261190,1778773850000,-892.364592,0.0003577,7]
[422261192,1778773850000,-321.442549,0.0003577,7]
[422261193,1778773850000,-892.364592,0.0003577,7]
[422261189,1778773850000,-892.364592,0.0003577,7]
[422261186,1778773850000,-1062.333433,0.0003577,7]
[422261179,1778773850000,-556.0,0.0003563,13]
[422261175,1778773850000,-500.0,0.00035616,7]
[422261194,1778773850000,-321.442549,0.0003577,7]
[422261239,1778773851000,-393.0,0.00036047,2]
[422261236,1778773851000,-393.0,0.00036037,2]
[422261242,1778773851000,-1000.0,0.00036065,60]
[422261248,1778773851000,-393.0,0.00036094,2]
[422261241,1778773851000,-393.0,0.0003606,2]
[422261244,1778773851000,-424.0,0.00036067,2]
[422261252,1778773851000,-649.95,0.00036103,7]
[422261253,1778773851000,-697.47596075,0.00036103,7]
[422261245,1778773851000,-393.0,0.00036073,2]
[422261235,1778773851000,-393.0,0.00036037,2]
[422261243,1778773851000,-424.0,0.00036066,2]
[422261237,1778773851000,-424.0,0.00036042,2]
[422261231,1778773851000,-150.0,0.00036,30]
[422261238,1778773851000,-393.0,0.00036046,2]
[422261240,1778773851000,-393.0,0.00036057,2]
[422261233,1778773851000,-393.0,0.00036031,2]
[422261232,1778773851000,-40768.0,0.00036022,30]
[422261229,1778773851000,-3317.69,0.00036,2]
[422261230,1778773851000,-150.0,0.00036,60]
[422261228,1778773851000,-500.0,0.00035999,37]
[422261227,1778773851000,-500.0,0.00035999,30]
[422261226,1778773851000,-152.0,0.00035999,30]
[422261225,1778773851000,-151.0,0.00035999,37]
[422261251,1778773851000,-505.31,0.000361,30]
[422261234,1778773851000,-393.0,0.00036033,2]
[422261246,1778773851000,-2948.03,0.0003608,2]
[422261224,1778773851000,-1077.36135085,0.00035999,37]
[422261250,1778773851000,-424.0,0.00036099,2]
[422261247,1778773851000,-393.0,0.00036081,2]
[422261277,1778773851000,-580.80823926,0.00036148,30]
[422261275,1778773851000,-450.62970485,0.00036144,2]
[422261267,1778773851000,-393.0,0.00036133,2]
[422261269,1778773851000,-393.0,0.00036133,2]
[422261268,1778773851000,-393.0,0.00036133,2]
[422261274,1778773851000,-424.0,0.00036144,2]
[422261271,1778773851000,-393.0,0.00036138,2]
[422261266,1778773851000,-424.0,0.00036132,2]
[422261273,1778773851000,-393.0,0.00036142,2]
[422261272,1778773851000,-424.0,0.00036141,2]
[422261270,1778773851000,-393.0,0.00036136,2]
[422261276,1778773851000,-3710.9651869,0.00036148,30]
[422261265,1778773851000,-424.0,0.0003613,2]
[422261249,1778773851000,-424.0,0.00036097,2]
[422261264,1778773851000,-393.0,0.00036114,2]
[422261256,1778773851000,-657.595004,8.9e-05,2]
[422261255,1778773851000,-963.76004824,8.9e-05,2]
[422261257,1778773851000,-151.0,0.000268,2]
[422261254,1778773851000,-878.64494776,8.9e-05,2]
[422261259,1778773851000,-450.0,0.00028452,2]
[422261262,1778773851000,-416.72403925,0.00036103,7]
[422261260,1778773851000,-597.0,0.00028452,2]
[422261261,1778773851000,-151.0,0.00034511,7]
[422261263,1778773851000,-152.0,0.00036114,10]
[422261258,1778773851000,-450.0,0.00028452,2]
[422261300,1778773853000,-393.0,0.00036171,2]
[422261281,1778773853000,-5267.65225745,0.00036148,30]
[422261296,1778773853000,-425.186581,0.00036163,7]
[422261298,1778773853000,-393.0,0.00036167,2]
[422261299,1778773853000,-393.0,0.00036168,2]
[422261304,1778773853000,-393.0,0.00036177,2]
[422261292,1778773853000,-151.0,0.00036163,7]
[422261303,1778773853000,-393.0,0.00036176,2]
[422261293,1778773853000,-425.186581,0.00036163,7]
[422261288,1778773853000,-393.0,0.0003616,2]
[422261290,1778773853000,-393.0,0.00036163,2]
[422261289,1778773853000,-393.0,0.00036162,2]
[422261285,1778773853000,-393.0,0.00036152,2]
[422261284,1778773853000,-25555.15727484,0.00036148,30]
[422261286,1778773853000,-2049.6,0.00036153,30]
[422261291,1778773853000,-151.0,0.00036163,7]
[422261287,1778773853000,-424.0,0.0003616,2]
[422261280,1778773853000,-1287.99835117,0.00036148,30]
[422261279,1778773853000,-614.16079413,0.00036148,30]
[422261278,1778773853000,-151.0,0.000268,2]
[422261297,1778773853000,-393.0,0.00036165,2]
[422261283,1778773853000,-341.31252264,0.00036148,30]
[422261294,1778773853000,-425.186581,0.00036163,7]
[422261282,1778773853000,-3409.94537361,0.00036148,30]
[422261301,1778773853000,-424.0,0.00036174,2]
[422261295,1778773853000,-425.186581,0.00036163,7]
[422261320,1778773853000,-2543.0,0.00025767,10]
[422261322,1778773853000,-313258.58320142,0.00036189,2]
[422261321,1778773853000,-6052.0,0.0002938,2]
[422261325,1778773853000,-151.0,0.00036189,7]
[422261323,1778773853000,-151.0,0.00036189,7]
[422261319,1778773853000,-20317.96108257,0.00025363,2]
[422261318,1778773853000,-4650.00000001,0.00025363,2]
[422261315,1778773853000,-484.56224999,0.00036189,2]
[422261314,1778773853000,-27435.29718385,0.00036189,2]
[422261313,1778773853000,-185.425201,0.00034511,7]
[422261324,1778773853000,-151.0,0.00036189,7]
[422261316,1778773853000,-1575.79617182,0.00025363,2]
[422261312,1778773853000,-6052.0,0.0002638,2]
[422261311,1778773853000,-6052.0,0.0002338,2]
[422261310,1778773853000,-367.18619809,8.999e-05,2]
[422261306,1778773853000,-393.0,0.0003618,2]
[422261309,1778773853000,-5812.11005444,0.00036189,2]
[422261308,1778773853000,-153.7763467,0.00036189,2]
[422261307,1778773853000,-424.0,0.00036181,2]
[422261305,1778773853000,-424.0,0.0003618,2]
[422261317,1778773853000,-610.28764379,0.00025363,2]
[422261302,1778773853000,-393.0,0.00036175,2]
[422261366,1778773854000,-151.0,0.00036189,7]
[422261367,1778773854000,-151.0,0.00036189,7]
[422261365,1778773854000,-288.867224,0.00036189,7]
[422261364,1778773854000,-151.0,0.00036189,7]
[422261359,1778773854000,-6069.126935,0.00036189,7]
[422261358,1778773854000,-6069.126935,0.00036189,7]
[422261353,1778773854000,-920.886244,0.00036189,7]
[422261361,1778773854000,-254.173726,0.00036189,7]
[422261351,1778773854000,-413.199868,0.00036189,7]
[422261354,1778773854000,-920.886244,0.00036189,7]
[422261369,1778773854000,-556.0,0.00036192,14]
[422261356,1778773854000,-6069.126935,0.00036189,7]
[422261375,1778773854000,-393.0,0.00036204,2]
[422261379,1778773854000,-393.0,0.00036213,2]
[422261373,1778773854000,-1295.35,0.000362,30]
[422261370,1778773854000,-393.0,0.00036194,2]
[422261368,1778773854000,-424.0,0.0003619,2]
[422261374,1778773854000,-393.0,0.00036203,2]
[422261372,1778773854000,-393.0,0.000362,2]
[422261376,1778773854000,-393.0,0.00036206,2]
[422261378,1778773854000,-424.0,0.00036213,2]
[422261387,1778773854000,-393.0,0.00036232,2]
[422261377,1778773854000,-393.0,0.00036209,2]
[422261355,1778773854000,-920.886244,0.00036189,7]
[422261380,1778773854000,-517.0,0.00036217,2]
[422261382,1778773854000,-424.0,0.00036219,2]
[422261386,1778773854000,-393.0,0.00036228,2]
[422261371,1778773854000,-424.0,0.00036196,2]
[422261357,1778773854000,-6069.126935,0.00036189,7]
[422261343,1778773854000,-1565.602577,0.00036189,7]
[422261360,1778773854000,-254.173726,0.00036189,7]
[422261385,1778773854000,-393.0,0.00036227,2]
[422261326,1778773854000,-151.0,0.00036189,7]
[422261327,1778773854000,-151.0,0.00036189,7]
[422261330,1778773854000,-151.0,0.00036189,7]
[422261331,1778773854000,-151.0,0.00036189,7]
[422261328,1778773854000,-151.0,0.00036189,7]
[422261329,1778773854000,-151.0,0.00036189,7]
[422261332,1778773854000,-402.640916,0.00036189,7]
[422261337,1778773854000,-151.0,0.00036189,7]
[422261338,1778773854000,-151.0,0.00036189,7]
[422261333,1778773854000,-402.640916,0.00036189,7]
[422261335,1778773854000,-402.640916,0.00036189,7]
[422261334,1778773854000,-402.640916,0.00036189,7]
[422261336,1778773854000,-151.0,0.00036189,7]
[422261341,1778773854000,-1565.602577,0.00036189,7]
[422261340,1778773854000,-1565.602577,0.00036189,7]
[422261342,1778773854000,-1565.602577,0.00036189,7]
[422261339,1778773854000,-151.0,0.00036189,7]
[422261347,1778773854000,-591.875821,0.00036189,7]
[422261344,1778773854000,-591.875821,0.00036189,7]
[422261345,1778773854000,-591.875821,0.00036189,7]
[422261349,1778773854000,-413.199868,0.00036189,7]
[422261346,1778773854000,-591.875821,0.00036189,7]
[422261350,1778773854000,-413.199868,0.00036189,7]
[422261348,1778773854000,-413.199868,0.00036189,7]
[422261352,1778773854000,-920.886244,0.00036189,7]
[422261362,1778773854000,-254.173726,0.00036189,7]
[422261363,1778773854000,-254.173726,0.00036189,7]
[422261381,1778773854000,-424.0,0.00036219,2]
[422261384,1778773854000,-393.0,0.00036221,2]
[422261388,1778773854000,-393.0,0.00036233,2]
[422261421,1778773854000,-10275.2733,0.000363,2]
[422261423,1778773854000,-500.0,0.000363,2]
[422261417,1778773854000,-424.0,0.00036296,2]
[422261422,1778773854000,-500.0,0.000363,2]
[422261425,1778773854000,-500.0,0.000363,2]
[422261436,1778773854000,-500.0,0.000363,2]
[422261435,1778773854000,-500.0,0.000363,2]
[422261426,1778773854000,-500.0,0.000363,2]
[422261424,1778773854000,-500.0,0.000363,2]
[422261427,1778773854000,-500.0,0.000363,2]
[422261428,1778773854000,-500.0,0.000363,2]
[422261429,1778773854000,-500.0,0.000363,2]
[422261431,1778773854000,-500.0,0.000363,2]
[422261433,1778773854000,-500.0,0.000363,2]
[422261434,1778773854000,-500.0,0.000363,2]
[422261430,1778773854000,-500.0,0.000363,2]
[422261432,1778773854000,-500.0,0.000363,2]
[422261437,1778773854000,-500.0,0.000363,2]
[422261439,1778773854000,-500.0,0.000363,2]
[422261440,1778773854000,-500.0,0.000363,2]
[422261442,1778773854000,-264.89014969,0.000363,2]
[422261444,1778773854000,-151.0,0.000363,7]
[422261447,1778773854000,-424.0,0.00036301,2]
[422261445,1778773854000,-151.0,0.000363,7]
[422261446,1778773854000,-1000.0,0.000363,60]
[422261443,1778773854000,-151.0,0.000363,7]
[422261383,1778773854000,-424.0,0.0003622,2]
[422261416,1778773854000,-424.0,0.00036295,2]
[422261418,1778773854000,-393.0,0.00036296,2]
[422261441,1778773854000,-500.0,0.000363,2]
[422261420,1778773854000,-393.0,0.00036297,2]
[422261419,1778773854000,-393.0,0.00036297,2]
[422261389,1778773854000,-151.0,0.00036233,3]
[422261392,1778773854000,-393.0,0.0003624,2]
[422261391,1778773854000,-393.0,0.00036239,2]
[422261390,1778773854000,-247.56391,0.00036233,3]
[422261396,1778773854000,-424.0,0.00036247,2]
[422261393,1778773854000,-393.0,0.00036246,2]
[422261395,1778773854000,-151.0,0.00036247,30]
[422261394,1778773854000,-172.0,0.00036247,30]
[422261398,1778773854000,-393.0,0.0003625,2]
[422261408,1778773854000,-424.0,0.00036285,2]
[422261409,1778773854000,-393.0,0.00036285,2]
[422261397,1778773854000,-393.0,0.00036248,2]
[422261402,1778773854000,-393.0,0.00036268,2]
[422261438,1778773854000,-500.0,0.000363,2]
[422261399,1778773854000,-393.0,0.00036253,2]
[422261404,1778773854000,-40769.0,0.00036274,30]
[422261415,1778773854000,-393.0,0.00036294,2]
[422261413,1778773854000,-393.0,0.00036289,2]
[422261414,1778773854000,-424.0,0.0003629,2]
[422261412,1778773854000,-424.0,0.00036288,2]
[422261410,1778773854000,-649.95,0.00036285,7]
[422261411,1778773854000,-393.0,0.00036286,2]
[422261406,1778773854000,-393.0,0.00036276,2]
[422261403,1778773854000,-424.0,0.00036272,2]
[422261405,1778773854000,-393.0,0.00036275,2]
[422261401,1778773854000,-424.0,0.00036267,2]
[422261400,1778773854000,-393.0,0.00036254,2]
[422261407,1778773854000,-424.0,0.00036284,2]
[422261487,1778773855000,-1500.0,0.000364,21]
[422261488,1778773855000,-1676.29100157,0.000364,2]
[422261485,1778773855000,-1725.01407358,0.000364,2]
[422261481,1778773855000,-1287.9575,0.000364,7]
[422261484,1778773855000,-1725.01407358,0.000364,2]
[422261483,1778773855000,-151.0,0.000364,7]
[422261486,1778773855000,-3075.91158558,0.000364,2]
[422261477,1778773855000,-240.07820667,0.000364,30]
[422261491,1778773855000,-250.0,0.000364,120]
[422261478,1778773855000,-285.4850009,0.000364,30]
[422261482,1778773855000,-1287.9575,0.000364,7]
[422261480,1778773855000,-1287.9575,0.000364,7]
[422261496,1778773855000,-2511.57,0.00036485,10]
[422261490,1778773855000,-441.91799074,0.000364,2]
[422261489,1778773855000,-441.91799074,0.000364,2]
[422261492,1778773855000,-500.0,0.00036439,2]
[422261493,1778773855000,-151.0,0.00036449,14]
[422261506,1778773855000,-372.88041927,0.00036574,2]
[422261498,1778773855000,-208.3309892,0.000365,10]
[422261495,1778773855000,-2511.57,0.00036455,10]
[422261500,1778773855000,-276.0,0.00036572,30]
[422261505,1778773855000,-172.0,0.00036573,30]
[422261501,1778773855000,-210.0,0.00036573,30]
[422261479,1778773855000,-1287.9575,0.000364,7]
[422261503,1778773855000,-4032.0,0.00036573,30]
[422261494,1778773855000,-208.3309892,0.00036452,30]
[422261474,1778773855000,-166.0,0.000364,30]
[422261453,1778773855000,-1107.63007,0.00036399,30]
[422261472,1778773855000,-166.0,0.000364,30]
[422261504,1778773855000,-209.0,0.00036573,30]
[422261448,1778773855000,-424.0,0.00036344,2]
[422261449,1778773855000,-424.0,0.00036351,2]
[422261457,1778773855000,-197.22712604,0.00036399,120]
[422261458,1778773855000,-272390.0,0.000364,30]
[422261450,1778773855000,-1000.0,0.00036398,60]
[422261460,1778773855000,-208.3309892,0.000364,30]
[422261459,1778773855000,-160.0,0.000364,30]
[422261461,1778773855000,-216.56260721,0.000364,60]
[422261452,1778773855000,-559.19188,0.00036399,30]
[422261454,1778773855000,-151.0,0.00036399,30]
[422261462,1778773855000,-424.0,0.000364,2]
[422261456,1778773855000,-500.0,0.00036399,30]
[422261463,1778773855000,-1343.19200131,0.000364,2]
[422261455,1778773855000,-152.0,0.00036399,30]
[422261467,1778773855000,-166.0,0.000364,30]
[422261464,1778773855000,-200.0,0.000364,2]
[422261466,1778773855000,-300.0,0.000364,30]
[422261465,1778773855000,-301.11515345,0.000364,30]
[422261469,1778773855000,-166.0,0.000364,30]
[422261470,1778773855000,-166.0,0.000364,30]
[422261468,1778773855000,-166.0,0.000364,30]
[422261476,1778773855000,-153.0,0.000364,30]
[422261475,1778773855000,-172.0,0.000364,30]
[422261471,1778773855000,-166.0,0.000364,30]
[422261473,1778773855000,-166.0,0.000364,30]
[422261497,1778773855000,-160.0,0.000365,10]
[422261451,1778773855000,-500.0,0.00036399,30]
[422261502,1778773855000,-2905.0,0.00036573,30]
[422261536,1778773855000,-5000.0,0.00037,38]
[422261541,1778773855000,-21831.82,0.00037,25]
[422261533,1778773855000,-365.0,0.00037,2]
[422261532,1778773855000,-1000.0,0.00036986,120]
[422261540,1778773855000,-250.0,0.00037,7]
[422261534,1778773855000,-168.52162715,0.00037,2]
[422261548,1778773855000,-151.0,0.00037,7]
[422261547,1778773855000,-181.038,0.00037,2]
[422261543,1778773855000,-208.3309892,0.00037,7]
[422261553,1778773855000,-151.0,0.00037,7]
[422261550,1778773855000,-151.0,0.00037,7]
[422261551,1778773855000,-151.0,0.00037,7]
[422261545,1778773855000,-1295.35,0.00037,30]
[422261544,1778773855000,-505.31,0.00037,30]
[422261549,1778773855000,-151.0,0.00037,7]
[422261552,1778773855000,-151.0,0.00037,7]
[422261555,1778773855000,-151.0,0.00037,7]
[422261554,1778773855000,-151.0,0.00037,7]
[422261556,1778773855000,-175.70569,0.00037,7]
[422261557,1778773855000,-151.0,0.00037019,7]
[422261560,1778773855000,-316.55544324,0.00037022,2]
[422261561,1778773855000,-300.0,0.00037022,2]
[422261558,1778773855000,-300.0,0.00037022,2]
[422261559,1778773855000,-309.60276076,0.00037022,2]
[422261499,1778773855000,-235.2,0.00036528,10]
[422261537,1778773855000,-6000.0,0.00037,2]
[422261542,1778773855000,-1400.0,0.00037,10]
[422261546,1778773855000,-150.0,0.00037,2]
[422261531,1778773855000,-500.0,0.00036986,90]
[422261538,1778773855000,-6438.0,0.00037,5]
[422261514,1778773855000,-167.5,0.0003669,30]
[422261518,1778773855000,-556.0,0.00036753,14]
[422261516,1778773855000,-950.0,0.00036742,2]
[422261508,1778773855000,-154.0,0.00036578,30]
[422261517,1778773855000,-902.0,0.00036742,2]
[422261515,1778773855000,-950.0,0.00036742,2]
[422261509,1778773855000,-252.0,0.00036578,30]
[422261512,1778773855000,-350.0,0.00036589,9]
[422261513,1778773855000,-2546.52,0.000366,14]
[422261511,1778773855000,-208.3309892,0.0003658,30]
[422261510,1778773855000,-1982.0,0.00036578,30]